[Event "Titled Tuesday Blitz June 6 Late 2023"]
[White "Domingo Nunez, Ruben"]
[Black "Van Dael, Siem"]
[WhiteFideId "22245570"]
[BlackFideId "1049771"]
[WhiteElo "2404"]
[BlackElo "2336"]
[Result "1-0"]
[Round "10"]
[TimeControl "180+2"]
[Date "2023.06.07"]
[WhiteClock "0:00:32"]
[BlackClock "0:00:25"]
[Board "36"]

1. g4 {[%clk 0:02:55]}  d5 {[%clk 0:02:51]} 2. Bg2 {[%clk 0:02:55]}  Bxg4 {[%clk 0:02:50]} 3. c4 {[%clk 0:02:56]}  c6 {[%clk 0:02:50]} 4. Qb3 {[%clk 0:02:56]}  Qb6 {[%clk 0:02:37]} 5. cxd5 {[%clk 0:02:39]}  cxd5 {[%clk 0:02:32]} 6. Bxd5 {[%clk 0:02:39]}  Qxb3 {[%clk 0:02:27]} 7. axb3 {[%clk 0:02:38]}  Nc6 {[%clk 0:02:27]} 8. Nc3 {[%clk 0:02:23]}  Nf6 {[%clk 0:02:27]} 9. Bxc6+ {[%clk 0:02:23]}  bxc6 {[%clk 0:02:27]} 10. Ra6 {[%clk 0:02:23]}  Kd7 {[%clk 0:02:26]} 11. h3 {[%clk 0:02:22]}  Be6 {[%clk 0:02:24]} 12. Nf3 {[%clk 0:02:22]}  Bxb3 {[%clk 0:02:04]} 13. Ne5+ {[%clk 0:02:13]}  Ke8 {[%clk 0:02:04]} 14. Nxc6 {[%clk 0:02:09]}  e6 {[%clk 0:02:00]} 15. d3 {[%clk 0:02:07]}  Bd5 {[%clk 0:01:57]} 16. Nxd5 {[%clk 0:02:04]}  Nxd5 {[%clk 0:01:58]} 17. Bd2 {[%clk 0:01:57]}  Bc5 {[%clk 0:01:56]} 18. Rg1 {[%clk 0:01:44]}  g6 {[%clk 0:01:49]} 19. Rg4 {[%clk 0:01:42]}  Nc7 {[%clk 0:01:45]} 20. Ra1 {[%clk 0:01:36]}  Bb6 {[%clk 0:01:42]} 21. Rc4 {[%clk 0:01:31]}  f6 {[%clk 0:01:38]} 22. Nxa7 {[%clk 0:01:25]}  Bxa7 {[%clk 0:01:37]} 23. Rxc7 {[%clk 0:01:13]}  Bxf2+ {[%clk 0:01:37]} 24. Kxf2 {[%clk 0:01:14]}  Rxa1 {[%clk 0:01:32]} 25. Rc8+ {[%clk 0:01:14]}  Kf7 {[%clk 0:01:27]} 26. Rxh8 {[%clk 0:01:14]}  Kg7 {[%clk 0:01:25]} 27. Rb8 {[%clk 0:01:10]}  g5 {[%clk 0:01:24]} 28. b4 {[%clk 0:01:06]}  h5 {[%clk 0:01:22]} 29. b5 {[%clk 0:01:07]}  Ra2 {[%clk 0:01:21]} 30. Be3 {[%clk 0:01:04]}  Kg6 {[%clk 0:01:19]} 31. b6 {[%clk 0:01:04]}  Rb2 {[%clk 0:01:18]} 32. Rc8 {[%clk 0:00:48]}  g4 {[%clk 0:00:56]} 33. hxg4 {[%clk 0:00:48]}  hxg4 {[%clk 0:00:57]} 34. Rc7 {[%clk 0:00:48]}  f5 {[%clk 0:00:31]} 35. b7 {[%clk 0:00:48]}  e5 {[%clk 0:00:30]} 36. Rc6+ {[%clk 0:00:45]}  Kg7 {[%clk 0:00:27]} 37. Rb6 {[%clk 0:00:45]}  g3+ {[%clk 0:00:25]} 38. Kxg3 {[%clk 0:00:31]}  f4+ {[%clk 0:00:25]} 39. Kf3 {[%clk 0:00:32]} 1-0


[Site "https://www.chess.com"]

[Event "Titled Tuesday Blitz June 6 Late 2023"]
[White "Barria Santos, Jose Guilherme"]
[Black "Domingo Nunez, Alejandro"]
[WhiteFideId "1939300"]
[BlackFideId "22245561"]
[WhiteElo "2266"]
[BlackElo "2291"]
[Result "0-1"]
[Round "10"]
[TimeControl "180+2"]
[Date "2023.06.07"]
[WhiteClock "0:00:29"]
[BlackClock "0:00:08"]
[Board "37"]

1. d4 {[%clk 0:02:37]}  g6 {[%clk 0:02:58]} 2. e4 {[%clk 0:02:36]}  Bg7 {[%clk 0:02:54]} 3. Be3 {[%clk 0:02:37]}  c6 {[%clk 0:02:54]} 4. c4 {[%clk 0:02:29]}  d5 {[%clk 0:02:47]} 5. cxd5 {[%clk 0:02:29]}  cxd5 {[%clk 0:02:48]} 6. e5 {[%clk 0:02:30]}  Nc6 {[%clk 0:02:46]} 7. Nc3 {[%clk 0:02:30]}  Nh6 {[%clk 0:02:46]} 8. Nf3 {[%clk 0:02:24]}  Bg4 {[%clk 0:02:30]} 9. Qb3 {[%clk 0:02:23]}  Bxf3 {[%clk 0:02:07]} 10. gxf3 {[%clk 0:02:24]}  Nf5 {[%clk 0:02:07]} 11. Qxb7 {[%clk 0:02:12]}  Ncxd4 {[%clk 0:02:07]} 12. Bb5+ {[%clk 0:02:09]}  Kf8 {[%clk 0:02:05]} 13. Rd1 {[%clk 0:01:51]}  Rb8 {[%clk 0:01:12]} 14. Qa6 {[%clk 0:01:37]}  Bxe5 {[%clk 0:01:07]} 15. f4 {[%clk 0:01:29]}  Bf6 {[%clk 0:01:05]} 16. O-O {[%clk 0:01:28]}  e6 {[%clk 0:01:02]} 17. a4 {[%clk 0:01:17]}  Kg7 {[%clk 0:00:50]} 18. Qxa7 {[%clk 0:01:16]}  Nf3+ {[%clk 0:00:45]} 19. Kg2 {[%clk 0:01:14]}  N5h4+ {[%clk 0:00:25]} 20. Kh1 {[%clk 0:01:11]}  Qc8 {[%clk 0:00:25]} 21. Qd7 {[%clk 0:00:55]}  Qxd7 {[%clk 0:00:22]} 22. Bxd7 {[%clk 0:00:56]}  d4 {[%clk 0:00:21]} 23. Bb5 {[%clk 0:00:44]}  dxe3 {[%clk 0:00:18]} 24. fxe3 {[%clk 0:00:45]}  Rhc8 {[%clk 0:00:16]} 25. Be2 {[%clk 0:00:42]}  Rxb2 {[%clk 0:00:12]} 26. Bxf3 {[%clk 0:00:38]}  Nxf3 {[%clk 0:00:12]} 27. Rxf3 {[%clk 0:00:39]}  Rxc3 {[%clk 0:00:11]} 28. Ra1 {[%clk 0:00:35]}  Rcc2 {[%clk 0:00:12]} 29. Rh3 {[%clk 0:00:35]}  Rb3 {[%clk 0:00:11]} 30. Rd1 {[%clk 0:00:29]}  Ra3 {[%clk 0:00:11]} 31. Rg3 {[%clk 0:00:27]}  Re2 {[%clk 0:00:10]} 32. e4 {[%clk 0:00:24]}  Rxg3 {[%clk 0:00:07]} 33. hxg3 {[%clk 0:00:25]}  Rxe4 {[%clk 0:00:07]} 34. a5 {[%clk 0:00:26]}  Ra4 {[%clk 0:00:07]} 35. Kg2 {[%clk 0:00:27]}  Rxa5 {[%clk 0:00:08]} 36. Kf3 {[%clk 0:00:28]}  Ra3+ {[%clk 0:00:08]} 37. Kg2 {[%clk 0:00:28]}  h5 {[%clk 0:00:09]} 38. Rg1 {[%clk 0:00:28]}  h4 {[%clk 0:00:09]} 39. g4 {[%clk 0:00:28]}  Rg3+ {[%clk 0:00:09]} 40. Kh2 {[%clk 0:00:28]}  Rxg1 {[%clk 0:00:08]} 41. Kxg1 {[%clk 0:00:29]}  g5 {[%clk 0:00:08]} 0-1


[Site "https://www.chess.com"]

[Event "Titled Tuesday Blitz June 6 Late 2023"]
[White "Vlassov, Nikolai"]
[Black "Santos Flores, Alberto"]
[WhiteFideId "4103360"]
[BlackFideId "3601234"]
[WhiteElo "2324"]
[BlackElo "2235"]
[Result "1-0"]
[Round "10"]
[TimeControl "180+2"]
[Date "2023.06.07"]
[WhiteClock "0:00:40"]
[BlackClock "0:01:02"]
[Board "38"]

1. e4 {[%clk 0:03:00]}  c5 {[%clk 0:02:59]} 2. c3 {[%clk 0:03:00]}  g6 {[%clk 0:02:59]} 3. d4 {[%clk 0:02:59]}  cxd4 {[%clk 0:03:00]} 4. cxd4 {[%clk 0:03:00]}  d5 {[%clk 0:03:00]} 5. e5 {[%clk 0:03:00]}  Nc6 {[%clk 0:03:00]} 6. Nc3 {[%clk 0:03:00]}  Bg7 {[%clk 0:03:00]} 7. Bf4 {[%clk 0:03:00]}  Bf5 {[%clk 0:02:54]} 8. g4 {[%clk 0:02:54]}  Be6 {[%clk 0:02:50]} 9. h3 {[%clk 0:02:42]}  f6 {[%clk 0:02:47]} 10. Nf3 {[%clk 0:02:41]}  fxe5 {[%clk 0:02:46]} 11. dxe5 {[%clk 0:02:30]}  Qd7 {[%clk 0:02:43]} 12. Bb5 {[%clk 0:02:22]}  Nh6 {[%clk 0:02:42]} 13. Qd2 {[%clk 0:02:07]}  Nf7 {[%clk 0:02:41]} 14. O-O-O {[%clk 0:02:07]}  O-O {[%clk 0:02:17]} 15. Nxd5 {[%clk 0:01:47]}  Bxd5 {[%clk 0:02:15]} 16. Qxd5 {[%clk 0:01:46]}  Qxd5 {[%clk 0:02:15]} 17. Rxd5 {[%clk 0:01:46]}  e6 {[%clk 0:02:16]} 18. Rd7 {[%clk 0:01:42]}  Bxe5 {[%clk 0:01:56]} 19. Nxe5 {[%clk 0:01:34]}  Nfxe5 {[%clk 0:01:55]} 20. Bxe5 {[%clk 0:01:33]}  Nxe5 {[%clk 0:01:54]} 21. Rxb7 {[%clk 0:01:32]}  Rxf2 {[%clk 0:01:53]} 22. Re1 {[%clk 0:01:31]}  Rc8+ {[%clk 0:01:45]} 23. Kb1 {[%clk 0:01:30]}  Nc4 {[%clk 0:01:44]} 24. Bxc4 {[%clk 0:01:23]}  Rxc4 {[%clk 0:01:45]} 25. a3 {[%clk 0:01:14]}  Rc6 {[%clk 0:01:26]} 26. Rxa7 {[%clk 0:01:08]}  Rb6 {[%clk 0:01:26]} 27. b4 {[%clk 0:01:07]}  Rd6 {[%clk 0:01:26]} 28. Rc1 {[%clk 0:01:05]}  Rd3 {[%clk 0:01:13]} 29. Rc8+ {[%clk 0:01:01]}  Rf8 {[%clk 0:01:12]} 30. Rxf8+ {[%clk 0:01:00]}  Kxf8 {[%clk 0:01:13]} 31. Kc2 {[%clk 0:00:47]}  Rxh3 {[%clk 0:01:10]} 32. b5 {[%clk 0:00:47]}  Rh2+ {[%clk 0:01:02]} 33. Kc3 {[%clk 0:00:46]}  Rh1 {[%clk 0:01:02]} 34. b6 {[%clk 0:00:40]} 1-0


[Site "https://www.chess.com"]

[Event "Titled Tuesday Blitz June 6 Late 2023"]
[White "reevecanada"]
[Black "Chabris, Christopher"]
[BlackFideId "2005263"]
[WhiteElo "2605"]
[BlackElo "2425"]
[Result "1-0"]
[Round "10"]
[TimeControl "180+2"]
[Date "2023.06.07"]
[WhiteClock "0:01:41"]
[BlackClock "0:00:02"]
[Board "39"]

1. e4 {[%clk 0:03:00]}  e5 {[%clk 0:02:58]} 2. Nf3 {[%clk 0:02:59]}  Nc6 {[%clk 0:02:59]} 3. d4 {[%clk 0:02:57]}  exd4 {[%clk 0:02:58]} 4. Nxd4 {[%clk 0:02:55]}  Qf6 {[%clk 0:02:58]} 5. Nb3 {[%clk 0:02:47]}  Bb4+ {[%clk 0:02:50]} 6. c3 {[%clk 0:02:44]}  Be7 {[%clk 0:02:50]} 7. Be2 {[%clk 0:02:43]}  a5 {[%clk 0:02:48]} 8. O-O {[%clk 0:02:43]}  a4 {[%clk 0:02:48]} 9. Nd4 {[%clk 0:02:43]}  Qg6 {[%clk 0:02:39]} 10. Bh5 {[%clk 0:02:37]}  Qxe4 {[%clk 0:02:20]} 11. Re1 {[%clk 0:02:33]}  Qd5 {[%clk 0:02:08]} 12. Bf3 {[%clk 0:02:33]}  Qc5 {[%clk 0:01:59]} 13. Qe2 {[%clk 0:02:31]}  d6 {[%clk 0:01:52]} 14. Na3 {[%clk 0:02:19]}  Ne5 {[%clk 0:01:48]} 15. Be4 {[%clk 0:02:15]}  Nf6 {[%clk 0:01:45]} 16. f4 {[%clk 0:02:14]}  Bg4 {[%clk 0:01:41]} 17. Qb5+ {[%clk 0:02:07]}  Ned7 {[%clk 0:01:25]} 18. Bxb7 {[%clk 0:02:05]}  Rb8 {[%clk 0:01:17]} 19. Qc6 {[%clk 0:01:57]}  Qb6 {[%clk 0:00:31]} 20. Qxb6 {[%clk 0:01:55]}  Nxb6 {[%clk 0:00:24]} 21. Bc6+ {[%clk 0:01:53]}  Bd7 {[%clk 0:00:19]} 22. Nab5 {[%clk 0:01:53]}  Kd8 {[%clk 0:00:16]} 23. b3 {[%clk 0:01:50]}  Re8 {[%clk 0:00:15]} 24. Bb2 {[%clk 0:01:49]}  Bf8 {[%clk 0:00:10]} 25. c4 {[%clk 0:01:48]}  Rxe1+ {[%clk 0:00:06]} 26. Rxe1 {[%clk 0:01:48]}  axb3 {[%clk 0:00:06]} 27. axb3 {[%clk 0:01:48]}  Nc8 {[%clk 0:00:06]} 28. h3 {[%clk 0:01:47]}  Ne7 {[%clk 0:00:06]} 29. Bxd7 {[%clk 0:01:47]}  Kxd7 {[%clk 0:00:06]} 30. g4 {[%clk 0:01:46]}  c6 {[%clk 0:00:05]} 31. Nc3 {[%clk 0:01:46]}  Ra8 {[%clk 0:00:05]} 32. Kf2 {[%clk 0:01:43]}  Rb8 {[%clk 0:00:04]} 33. Kg3 {[%clk 0:01:43]}  d5 {[%clk 0:00:03]} 34. c5 {[%clk 0:01:40]}  Nc8 {[%clk 0:00:02]} 35. Na4 {[%clk 0:01:40]}  Na7 {[%clk 0:00:02]} 36. Nb6+ {[%clk 0:01:39]}  Kc7 {[%clk 0:00:02]} 37. b4 {[%clk 0:01:40]}  Nb5 {[%clk 0:00:02]} 38. Nb3 {[%clk 0:01:41]}  Na7 {[%clk 0:00:01]} 39. Be5+ {[%clk 0:01:41]}  Kb7 {[%clk 0:00:01]} 40. Bxb8 {[%clk 0:01:40]}  Kxb8 {[%clk 0:00:02]} 41. g5 {[%clk 0:01:41]} 1-0


[Site "https://www.chess.com"]

[Event "Titled Tuesday Blitz June 6 Late 2023"]
[White "Licznerski, Lukasz"]
[Black "Przybylski, Wojciech"]
[WhiteFideId "1179250"]
[BlackFideId "1117599"]
[WhiteElo "2453"]
[BlackElo "2228"]
[Result "0-1"]
[Round "10"]
[TimeControl "180+2"]
[Date "2023.06.07"]
[WhiteClock "0:00:02"]
[BlackClock "0:00:04"]
[Board "40"]

1. e4 {[%clk 0:02:55]}  e5 {[%clk 0:02:58]} 2. Nf3 {[%clk 0:02:54]}  Nf6 {[%clk 0:02:58]} 3. d4 {[%clk 0:02:51]}  Nxe4 {[%clk 0:02:57]} 4. Bd3 {[%clk 0:02:51]}  d5 {[%clk 0:02:57]} 5. Nxe5 {[%clk 0:02:52]}  Nd7 {[%clk 0:02:58]} 6. Nc3 {[%clk 0:02:50]}  Nxc3 {[%clk 0:02:56]} 7. bxc3 {[%clk 0:02:51]}  Nxe5 {[%clk 0:02:56]} 8. dxe5 {[%clk 0:02:52]}  Bc5 {[%clk 0:02:55]} 9. O-O {[%clk 0:02:50]}  O-O {[%clk 0:02:55]} 10. Qh5 {[%clk 0:02:39]}  g6 {[%clk 0:02:54]} 11. Qh6 {[%clk 0:02:36]}  Re8 {[%clk 0:02:53]} 12. Bg5 {[%clk 0:02:34]}  Bf8 {[%clk 0:02:50]} 13. Qh4 {[%clk 0:02:29]}  Qd7 {[%clk 0:02:50]} 14. f4 {[%clk 0:02:13]}  Qg4 {[%clk 0:02:37]} 15. Qf2 {[%clk 0:02:07]}  b6 {[%clk 0:02:36]} 16. Kh1 {[%clk 0:01:47]}  Bc5 {[%clk 0:02:33]} 17. Qe1 {[%clk 0:01:42]}  Qe6 {[%clk 0:02:25]} 18. Bf6 {[%clk 0:01:33]}  Qg4 {[%clk 0:01:58]} 19. h3 {[%clk 0:01:30]}  Qh5 {[%clk 0:01:53]} 20. Kh2 {[%clk 0:01:10]}  c6 {[%clk 0:01:41]} 21. Bg5 {[%clk 0:01:03]}  Bg4 {[%clk 0:01:30]} 22. Qg3 {[%clk 0:00:41]}  Be2 {[%clk 0:01:29]} 23. Rae1 {[%clk 0:00:41]}  Bxd3 {[%clk 0:01:27]} 24. cxd3 {[%clk 0:00:40]}  Be7 {[%clk 0:01:18]} 25. Bxe7 {[%clk 0:00:38]}  Rxe7 {[%clk 0:01:18]} 26. f5 {[%clk 0:00:39]}  Rae8 {[%clk 0:01:13]} 27. d4 {[%clk 0:00:39]}  Qh6 {[%clk 0:01:06]} 28. Rf4 {[%clk 0:00:36]}  c5 {[%clk 0:00:36]} 29. Rh4 {[%clk 0:00:33]}  Qd2 {[%clk 0:00:36]} 30. Rf1 {[%clk 0:00:23]}  cxd4 {[%clk 0:00:35]} 31. cxd4 {[%clk 0:00:24]}  Rc7 {[%clk 0:00:33]} 32. e6 {[%clk 0:00:19]}  Rce7 {[%clk 0:00:17]} 33. Rf2 {[%clk 0:00:07]}  Qc1 {[%clk 0:00:15]} 34. exf7+ {[%clk 0:00:06]}  Rxf7 {[%clk 0:00:13]} 35. fxg6 {[%clk 0:00:04]}  Rg7 {[%clk 0:00:10]} 36. gxh7+ {[%clk 0:00:04]}  Kh8 {[%clk 0:00:11]} 37. Qf3 {[%clk 0:00:03]}  Qc7+ {[%clk 0:00:09]} 38. Qf4 {[%clk 0:00:02]}  Qd8 {[%clk 0:00:09]} 39. Rh5 {[%clk 0:00:02]}  Qb8 {[%clk 0:00:06]} 40. Qxb8 {[%clk 0:00:01]}  Rxb8 {[%clk 0:00:07]} 41. Rxd5 {[%clk 0:00:01]}  Kxh7 {[%clk 0:00:07]} 42. Rdf5 {[%clk 0:00:02]}  Rd8 {[%clk 0:00:06]} 43. d5 {[%clk 0:00:01]}  a5 {[%clk 0:00:06]} 44. Rh5+ {[%clk 0:00:01]}  Kg8 {[%clk 0:00:04]} 45. Rhf5 {[%clk 0:00:01]}  b5 {[%clk 0:00:04]} 46. R5f3 {[%clk 0:00:01]}  b4 {[%clk 0:00:04]} 47. h4 {[%clk 0:00:02]}  Rxd5 {[%clk 0:00:04]} 48. Rg3 {[%clk 0:00:03]}  Rd4 {[%clk 0:00:03]} 49. Rxg7+ {[%clk 0:00:03]}  Kxg7 {[%clk 0:00:04]} 50. Kh3 {[%clk 0:00:04]}  a4 {[%clk 0:00:04]} 51. Rf5 {[%clk 0:00:03]}  a3 {[%clk 0:00:03]} 52. Rb5 {[%clk 0:00:03]}  Kg6 {[%clk 0:00:03]} 53. g3 {[%clk 0:00:02]}  Rc4 {[%clk 0:00:04]} 54. Rb6+ {[%clk 0:00:02]}  Kf5 {[%clk 0:00:04]} 55. Rb5+ {[%clk 0:00:03]}  Ke4 {[%clk 0:00:04]} 56. h5 {[%clk 0:00:03]}  Kd3 {[%clk 0:00:04]} 57. h6 {[%clk 0:00:01]}  Kc3 {[%clk 0:00:04]} 58. Rh5 {[%clk 0:00:01]}  Rc8 {[%clk 0:00:04]} 59. h7 {[%clk 0:00:02]}  b3 {[%clk 0:00:03]} 60. h8=Q+ {[%clk 0:00:02]}  Rxh8 {[%clk 0:00:03]} 61. Rxh8 {[%clk 0:00:02]}  bxa2 {[%clk 0:00:03]} 62. Rc8+ {[%clk 0:00:03]}  Kb2 {[%clk 0:00:04]} 63. Rb8+ {[%clk 0:00:04]}  Kc2 {[%clk 0:00:04]} 64. Rc8+ {[%clk 0:00:04]}  Kd2 {[%clk 0:00:05]} 65. Rd8+ {[%clk 0:00:05]}  Ke2 {[%clk 0:00:05]} 66. Re8+ {[%clk 0:00:05]}  Kf2 {[%clk 0:00:06]} 67. Rf8+ {[%clk 0:00:03]}  Kg1 {[%clk 0:00:06]} 68. g4 {[%clk 0:00:01]}  a1=Q {[%clk 0:00:06]} 69. Kh4 {[%clk 0:00:02]}  Qg7 {[%clk 0:00:06]} 70. Rf5 {[%clk 0:00:01]}  Qh7+ {[%clk 0:00:06]} 71. Rh5 {[%clk 0:00:01]}  Qe7+ {[%clk 0:00:06]} 72. g5 {[%clk 0:00:02]}  Qe4+ {[%clk 0:00:06]} 73. Kg3 {[%clk 0:00:02]}  Qe5+ {[%clk 0:00:06]} 74. Kg4 {[%clk 0:00:03]}  Qe2+ {[%clk 0:00:06]} 75. Kh4 {[%clk 0:00:01]}  Kg2 {[%clk 0:00:07]} 76. g6 {[%clk 0:00:01]}  Qe4+ {[%clk 0:00:06]} 77. Kg5 {[%clk 0:00:01]}  Qe3+ {[%clk 0:00:05]} 78. Kf5 {[%clk 0:00:01]}  Qc5+ {[%clk 0:00:05]} 79. Kg4 {[%clk 0:00:02]}  Qd4+ {[%clk 0:00:05]} 80. Kg5 {[%clk 0:00:03]}  Qe5+ {[%clk 0:00:05]} 81. Kh6 {[%clk 0:00:03]}  Qh8+ {[%clk 0:00:05]} 82. Kg5 {[%clk 0:00:04]}  Qd8+ {[%clk 0:00:06]} 83. Kh6 {[%clk 0:00:04]}  Qh8+ {[%clk 0:00:05]} 84. Kg5 {[%clk 0:00:04]}  Qg7 {[%clk 0:00:04]} 85. Rh7 {[%clk 0:00:04]}  Qg8 {[%clk 0:00:05]} 86. Kh6 {[%clk 0:00:04]}  a2 {[%clk 0:00:05]} 87. Ra7 {[%clk 0:00:02]}  a1=Q {[%clk 0:00:04]} 0-1


[Site "https://www.chess.com"]

[Event "Titled Tuesday Blitz June 6 Late 2023"]
[White "Melian, Juan Sebastian"]
[Black "Skvortsov, Andrei"]
[WhiteFideId "3706575"]
[BlackFideId "24108600"]
[WhiteElo "2092"]
[BlackElo "2259"]
[Result "0-1"]
[Round "10"]
[TimeControl "180+2"]
[Date "2023.06.07"]
[WhiteClock "0:00:03"]
[BlackClock "0:00:12"]
[Board "41"]

1. e4 {[%clk 0:03:00]}  e6 {[%clk 0:02:59]} 2. d4 {[%clk 0:02:59]}  d5 {[%clk 0:03:00]} 3. exd5 {[%clk 0:02:59]}  exd5 {[%clk 0:03:00]} 4. Nf3 {[%clk 0:03:00]}  Nc6 {[%clk 0:03:00]} 5. c4 {[%clk 0:02:45]}  Bb4+ {[%clk 0:02:58]} 6. Nc3 {[%clk 0:02:43]}  Nf6 {[%clk 0:02:55]} 7. Be2 {[%clk 0:02:41]}  dxc4 {[%clk 0:02:55]} 8. O-O {[%clk 0:02:38]}  O-O {[%clk 0:02:52]} 9. Bxc4 {[%clk 0:02:36]}  Bg4 {[%clk 0:02:51]} 10. Be3 {[%clk 0:02:36]}  Qd7 {[%clk 0:02:37]} 11. h3 {[%clk 0:02:34]}  Bh5 {[%clk 0:02:37]} 12. Be2 {[%clk 0:02:26]}  Rad8 {[%clk 0:02:31]} 13. Qb3 {[%clk 0:02:26]}  Bd6 {[%clk 0:02:16]} 14. Rad1 {[%clk 0:02:24]}  Qc8 {[%clk 0:02:14]} 15. Nb5 {[%clk 0:02:16]}  a6 {[%clk 0:01:41]} 16. Nc3 {[%clk 0:02:15]}  Bg6 {[%clk 0:01:36]} 17. d5 {[%clk 0:02:11]}  Ne5 {[%clk 0:01:36]} 18. Nd4 {[%clk 0:02:08]}  Rfe8 {[%clk 0:01:35]} 19. Rfe1 {[%clk 0:02:07]}  Ned7 {[%clk 0:01:35]} 20. Bf3 {[%clk 0:01:43]}  Nc5 {[%clk 0:01:35]} 21. Qc4 {[%clk 0:01:43]}  b5 {[%clk 0:01:34]} 22. Qf1 {[%clk 0:01:44]}  Nfe4 {[%clk 0:01:31]} 23. Nc6 {[%clk 0:01:38]}  Nxc3 {[%clk 0:01:30]} 24. bxc3 {[%clk 0:01:39]}  Rd7 {[%clk 0:01:29]} 25. c4 {[%clk 0:01:25]}  bxc4 {[%clk 0:01:27]} 26. Qxc4 {[%clk 0:01:24]}  Ne4 {[%clk 0:01:27]} 27. Bc1 {[%clk 0:01:14]}  f5 {[%clk 0:01:25]} 28. Bb2 {[%clk 0:01:10]}  Rf8 {[%clk 0:01:25]} 29. Re2 {[%clk 0:01:03]}  Ng5 {[%clk 0:01:17]} 30. Re3 {[%clk 0:00:54]}  Nxf3+ {[%clk 0:01:12]} 31. Rxf3 {[%clk 0:00:55]}  Bh5 {[%clk 0:01:11]} 32. Rdd3 {[%clk 0:00:48]}  Bxf3 {[%clk 0:01:10]} 33. Rxf3 {[%clk 0:00:49]}  Rdf7 {[%clk 0:01:09]} 34. Rb3 {[%clk 0:00:43]}  Qe8 {[%clk 0:01:06]} 35. Bc3 {[%clk 0:00:39]}  Qe4 {[%clk 0:01:04]} 36. Nd4 {[%clk 0:00:32]}  Qf4 {[%clk 0:00:49]} 37. g3 {[%clk 0:00:32]}  Qc1+ {[%clk 0:00:48]} 38. Qf1 {[%clk 0:00:33]}  Qh6 {[%clk 0:00:38]} 39. Ne6 {[%clk 0:00:33]}  Re8 {[%clk 0:00:39]} 40. Bd4 {[%clk 0:00:19]}  a5 {[%clk 0:00:37]} 41. Qb5 {[%clk 0:00:18]}  Rfe7 {[%clk 0:00:37]} 42. Qf1 {[%clk 0:00:16]}  a4 {[%clk 0:00:36]} 43. Re3 {[%clk 0:00:13]}  Qh5 {[%clk 0:00:32]} 44. Qg2 {[%clk 0:00:09]}  h6 {[%clk 0:00:27]} 45. Kh2 {[%clk 0:00:08]}  Qd1 {[%clk 0:00:26]} 46. Bc3 {[%clk 0:00:04]}  Qb1 {[%clk 0:00:16]} 47. Qf3 {[%clk 0:00:04]}  Rf7 {[%clk 0:00:15]} 48. Nxg7 {[%clk 0:00:04]}  Rxe3 {[%clk 0:00:15]} 49. Qxe3 {[%clk 0:00:03]}  Qe4 {[%clk 0:00:14]} 50. Qxe4 {[%clk 0:00:02]}  fxe4 {[%clk 0:00:14]} 51. Ne6 {[%clk 0:00:02]}  Rxf2+ {[%clk 0:00:15]} 52. Kg1 {[%clk 0:00:03]}  Bxg3 {[%clk 0:00:14]} 53. Nxc7 {[%clk 0:00:02]}  Rc2 {[%clk 0:00:14]} 54. Nb5 {[%clk 0:00:03]}  e3 {[%clk 0:00:13]} 55. d6 {[%clk 0:00:03]}  Bxd6 {[%clk 0:00:12]} 56. Nxd6 {[%clk 0:00:02]}  Rxc3 {[%clk 0:00:12]} 57. Kf1 {[%clk 0:00:03]}  Rc2 {[%clk 0:00:12]} 58. Nf5 {[%clk 0:00:03]}  Rf2+ {[%clk 0:00:12]} 0-1


[Site "https://www.chess.com"]